fUSD/lending_fUSD_20260509
["ID","MTS","AMOUNT","RATE_DAILY","PERIOD"]
[421892473,1778303432000,-150.0,0.0001311,2]
[421892477,1778303432000,-150.0,0.00013243,2]
[421892478,1778303432000,-150.0,0.00013322,2]
[421892488,1778303432000,-500.0,0.00013436,2]
[421892474,1778303432000,-167.34,0.00013132,2]
[421892489,1778303432000,-31180.72410102,0.00013437,2]
[421892501,1778303432000,-384.10147579,0.00013532,2]
[421892481,1778303432000,-255.0,0.00013387,2]
[421892479,1778303432000,-99279.0301,0.00013337,2]
[421892482,1778303432000,-5297.21860681,0.000134,2]
[421892486,1778303432000,-500.0,0.00013436,2]
[421892487,1778303432000,-500.0,0.00013436,2]
[421892483,1778303432000,-150.0,0.00013402,2]
[421892485,1778303432000,-471.379,0.00013433,2]
[421892484,1778303432000,-20606.1166,0.00013432,2]
[421892491,1778303432000,-7291.13743588,0.00013437,2]
[421892500,1778303432000,-500.0,0.00013532,2]
[421892490,1778303432000,-24953.27065151,0.00013437,2]
[421892480,1778303432000,-159.63,0.00013384,2]
[421892518,1778303437000,-500.0,0.00013436,2]
[421892521,1778303437000,-493.40789401,0.00013537,2]
[421892522,1778303437000,-150.0,0.00013562,2]
[421892519,1778303437000,-109.46875634,0.00013436,2]
[421892525,1778303437000,-150.0,0.00013562,2]
[421892523,1778303437000,-150.0,0.00013562,2]
[421892517,1778303437000,-500.0,0.00013436,2]
[421892524,1778303437000,-165.02133298,0.00013562,2]
[421892526,1778303437000,-157.097,0.00013587,2]
[421892520,1778303437000,-390.53124366,0.00013436,2]
[421892546,1778303438000,-500.0,0.00013698,2]
[421892544,1778303438000,-167.34,0.00013674,2]
[421892550,1778303438000,-189.02552516,0.00013698,2]
[421892543,1778303438000,-151.0,0.00013658,2]
[421892542,1778303438000,-2157.14243826,0.00013641,2]
[421892540,1778303438000,-2100.0,0.000136,4]
[421892541,1778303438000,-8976.5889054,0.00013604,2]
[421892539,1778303438000,-11238.77060657,0.000136,2]
[421892537,1778303438000,-13117.15383098,0.000136,2]
[421892538,1778303438000,-597.34621392,0.000136,2]
[421892536,1778303438000,-2831.00202694,0.000136,2]
[421892531,1778303438000,-2827.12066661,0.000136,2]
[421892528,1778303438000,-468.67422141,0.000136,2]
[421892527,1778303438000,-155.0,0.00013587,2]
[421892530,1778303438000,-396.06499837,0.000136,2]
[421892529,1778303438000,-803.62835775,0.000136,2]
[421892535,1778303438000,-1733.58218583,0.000136,2]
[421892533,1778303438000,-302.97385118,0.000136,2]
[421892534,1778303438000,-21526.82891913,0.000136,2]
[421892532,1778303438000,-290.84887371,0.000136,2]
[421892545,1778303438000,-500.0,0.00013698,2]
[421892548,1778303438000,-500.0,0.00013698,2]
[421892553,1778303438000,-500.0,0.00013698,2]
[421892551,1778303438000,-191.50379649,0.00013698,2]
[421892547,1778303438000,-500.0,0.00013698,2]
[421892571,1778303438000,-283.0046515,0.00013698,2]
[421892570,1778303438000,-216.9953485,0.00013698,2]
[421892565,1778303438000,-500.0,0.00013698,2]
[421892567,1778303438000,-500.0,0.00013698,2]
[421892566,1778303438000,-500.0,0.00013698,2]
[421892562,1778303438000,-500.0,0.00013698,2]
[421892564,1778303438000,-500.0,0.00013698,2]
[421892560,1778303438000,-500.0,0.00013698,2]
[421892559,1778303438000,-500.0,0.00013698,2]
[421892572,1778303438000,-433.95100276,0.00013698,2]
[421892561,1778303438000,-500.0,0.00013698,2]
[421892563,1778303438000,-500.0,0.00013698,2]
[421892558,1778303438000,-500.0,0.00013698,2]
[421892569,1778303438000,-500.0,0.00013698,2]
[421892568,1778303438000,-500.0,0.00013698,2]
[421892554,1778303438000,-430.43709217,0.00013698,2]
[421892552,1778303438000,-308.49620351,0.00013698,2]
[421892555,1778303438000,-69.56290783,0.00013698,2]
[421892549,1778303438000,-310.97447484,0.00013698,2]
[421892556,1778303438000,-500.0,0.00013698,2]
[421892557,1778303438000,-514.86146541,0.00013698,2]
[421892609,1778303440000,-500.0,0.00013698,2]
[421892604,1778303440000,-500.0,0.00013698,2]
[421892606,1778303440000,-500.0,0.00013698,2]
[421892605,1778303440000,-500.0,0.00013698,2]
[421892608,1778303440000,-500.0,0.00013698,2]
[421892616,1778303440000,-500.0,0.00013698,2]
[421892617,1778303440000,-500.0,0.00013698,2]
[421892611,1778303440000,-500.0,0.00013698,2]
[421892610,1778303440000,-500.0,0.00013698,2]
[421892630,1778303440000,-500.0,0.00013698,2]
[421892614,1778303440000,-500.0,0.00013698,2]
[421892613,1778303440000,-500.0,0.00013698,2]
[421892612,1778303440000,-500.0,0.00013698,2]
[421892631,1778303440000,-500.0,0.00013698,2]
[421892620,1778303440000,-500.0,0.00013698,2]
[421892622,1778303440000,-500.0,0.00013698,2]
[421892624,1778303440000,-500.0,0.00013698,2]
[421892626,1778303440000,-500.0,0.00013698,2]
[421892615,1778303440000,-500.0,0.00013698,2]
[421892607,1778303440000,-500.0,0.00013698,2]
[421892601,1778303440000,-500.0,0.00013698,2]
[421892596,1778303440000,-500.0,0.00013698,2]
[421892599,1778303440000,-500.0,0.00013698,2]
[421892628,1778303440000,-500.0,0.00013698,2]
[421892582,1778303440000,-66.04899724,0.00013698,2]
[421892583,1778303440000,-500.0,0.00013698,2]
[421892588,1778303440000,-500.0,0.00013698,2]
[421892587,1778303440000,-500.0,0.00013698,2]
[421892584,1778303440000,-302.60699763,0.00013698,2]
[421892585,1778303440000,-500.0,0.00013698,2]
[421892586,1778303440000,-500.0,0.00013698,2]
[421892589,1778303440000,-500.0,0.00013698,2]
[421892590,1778303440000,-500.0,0.00013698,2]
[421892591,1778303440000,-500.0,0.00013698,2]
[421892594,1778303440000,-500.0,0.00013698,2]
[421892595,1778303440000,-500.0,0.00013698,2]
[421892593,1778303440000,-468.2230542,0.00013698,2]
[421892597,1778303440000,-500.0,0.00013698,2]
[421892602,1778303440000,-500.0,0.00013698,2]
[421892592,1778303440000,-500.0,0.00013698,2]
[421892598,1778303440000,-500.0,0.00013698,2]
[421892603,1778303440000,-500.0,0.00013698,2]
[421892600,1778303440000,-500.0,0.00013698,2]
[421892639,1778303440000,-500.0,0.00013698,2]
[421892635,1778303440000,-500.0,0.00013698,2]
[421892633,1778303440000,-500.0,0.00013698,2]
[421892663,1778303440000,-4999.99,0.00013699,2]
[421892660,1778303440000,-719.15,0.00013699,2]
[421892662,1778303440000,-9999.99,0.00013699,2]
[421892664,1778303440000,-499.99,0.00013699,2]
[421892661,1778303440000,-3868.46,0.00013699,2]
[421892665,1778303440000,-4300.0,0.000137,5]
[421892666,1778303440000,-214.73073128,0.00013715,2]
[421892670,1778303440000,-151.0,0.00013762,2]
[421892672,1778303440000,-151.0,0.00013762,2]
[421892674,1778303440000,-472.524751,0.00013762,2]
[421892682,1778303440000,-572.13,0.00013765,2]
[421892680,1778303440000,-24953.27065147,0.00013762,2]
[421892671,1778303440000,-151.0,0.00013762,2]
[421892676,1778303440000,-472.524751,0.00013762,2]
[421892679,1778303440000,-31180.72410093,0.00013762,2]
[421892675,1778303440000,-472.524751,0.00013762,2]
[421892681,1778303440000,-500.0,0.00013765,2]
[421892673,1778303440000,-472.524751,0.00013762,2]
[421892637,1778303440000,-500.0,0.00013698,2]
[421892668,1778303440000,-151.0,0.00013762,2]
[421892659,1778303440000,-2500.0,0.00013699,2]
[421892678,1778303440000,-151.0,0.00013762,2]
[421892658,1778303440000,-166.66,0.00013699,2]
[421892669,1778303440000,-151.0,0.00013762,2]
[421892677,1778303440000,-151.0,0.00013762,2]
[421892641,1778303440000,-500.0,0.00013698,2]
[421892642,1778303440000,-500.0,0.00013698,2]
[421892643,1778303440000,-500.0,0.00013698,2]
[421892645,1778303440000,-500.0,0.00013698,2]
[421892644,1778303440000,-500.0,0.00013698,2]
[421892647,1778303440000,-572.13,0.00013698,2]
[421892653,1778303440000,-572.13,0.00013698,2]
[421892646,1778303440000,-572.13,0.00013698,2]
[421892649,1778303440000,-572.13,0.00013698,2]
[421892652,1778303440000,-572.13,0.00013698,2]
[421892651,1778303440000,-572.13,0.00013698,2]
[421892648,1778303440000,-572.13,0.00013698,2]
[421892650,1778303440000,-572.13,0.00013698,2]
[421892654,1778303440000,-572.13,0.00013698,2]
[421892657,1778303440000,-200.0,0.00013699,2]
[421892667,1778303440000,-208.0536425,0.00013727,2]
[421892655,1778303440000,-572.13,0.00013698,2]
[421892656,1778303440000,-572.13,0.00013698,2]
[421892724,1778303441000,-154.922631,0.00014115,2]
[421892726,1778303441000,-154.922631,0.00014115,2]
[421892718,1778303441000,-151.0,0.00014087,2]
[421892720,1778303441000,-24953.27065147,0.00014087,2]
[421892716,1778303441000,-472.524751,0.00014087,2]
[421892714,1778303441000,-472.524751,0.00014087,2]
[421892719,1778303441000,-31180.72410093,0.00014087,2]
[421892717,1778303441000,-151.0,0.00014087,2]
[421892715,1778303441000,-472.524751,0.00014087,2]
[421892734,1778303441000,-166.66,0.00014247,2]
[421892713,1778303441000,-472.524751,0.00014087,2]
[421892721,1778303441000,-166.66,0.0001411,2]
[421892736,1778303441000,-500.0,0.00014249,2]
[421892749,1778303441000,-151.0,0.0001425,2]
[421892725,1778303441000,-154.922631,0.00014115,2]
[421892729,1778303441000,-151.0,0.00014115,2]
[421892735,1778303441000,-150.40095173,0.00014247,2]
[421892731,1778303441000,-157.0,0.000142,2]
[421892730,1778303441000,-2236.95670848,0.00014189,2]
[421892733,1778303441000,-167.34,0.00014216,2]
[421892732,1778303441000,-2308.08071053,0.0001421,7]
[421892738,1778303441000,-24953.27065147,0.0001425,2]
[421892748,1778303441000,-151.0,0.0001425,2]
[421892739,1778303441000,-35195.66259826,0.0001425,2]
[421892740,1778303441000,-345478.82234742,0.0001425,2]
[421892741,1778303441000,-151.32584,0.0001425,2]
[421892711,1778303441000,-163.0,0.0001404,2]
[421892727,1778303441000,-151.0,0.00014115,2]
[421892723,1778303441000,-154.922631,0.00014115,2]
[421892691,1778303441000,-154.922631,0.00013825,2]
[421892712,1778303441000,-500.0,0.00014054,2]
[421892683,1778303441000,-500.0,0.0001378,2]
[421892685,1778303441000,-157.6,0.00013799,2]
[421892696,1778303441000,-22074.3234636,0.00013891,2]
[421892684,1778303441000,-2000.0,0.00013795,2]
[421892686,1778303441000,-6500.0,0.000138,5]
[421892687,1778303441000,-151.0,0.00013801,2]
[421892695,1778303441000,-8226.64173168,0.00013877,2]
[421892689,1778303441000,-154.922631,0.00013825,2]
[421892737,1778303441000,-31180.72410093,0.0001425,2]
[421892693,1778303441000,-151.0,0.00013825,2]
[421892692,1778303441000,-154.922631,0.00013825,2]
[421892690,1778303441000,-154.922631,0.00013825,2]
[421892688,1778303441000,-151.0,0.00013801,2]
[421892722,1778303441000,-500.0,0.00014114,2]
[421892694,1778303441000,-166.66,0.00013836,2]
[421892708,1778303441000,-2325.42143886,0.0001399,2]
[421892699,1778303441000,-4198.0,0.000139,3]
[421892701,1778303441000,-24953.27065147,0.00013925,2]
[421892706,1778303441000,-427.4,0.00013985,2]
[421892707,1778303441000,-150.0,0.00013985,2]
[421892700,1778303441000,-31180.72410093,0.00013925,2]
[421892703,1778303441000,-154.752545,0.00013959,2]
[421892698,1778303441000,-8700.0,0.000139,5]
[421892702,1778303441000,-151.0,0.00013959,2]
[421892709,1778303441000,-250.0,0.00014,2]
[421892705,1778303441000,-166.66,0.00013973,2]
[421892704,1778303441000,-158.496175,0.00013959,2]
[421892710,1778303441000,-157.74601024,0.00014033,2]
[421892697,1778303441000,-2622.8272434,0.00013891,2]
[421892742,1778303441000,-154.922631,0.0001425,2]
[421892728,1778303441000,-151.0,0.00014115,2]
[421892745,1778303441000,-154.922631,0.0001425,2]
[421892780,1778303441000,-472.524751,0.0001425,2]
[421892778,1778303441000,-472.524751,0.0001425,2]
[421892776,1778303441000,-173.97419088,0.0001425,2]
[421892777,1778303441000,-472.524751,0.0001425,2]
[421892783,1778303441000,-151.0,0.0001425,2]
[421892785,1778303441000,-500.0,0.00014273,2]
[421892786,1778303441000,-168.31089382,0.00014273,2]
[421892787,1778303441000,-500.0,0.00014273,2]
[421892784,1778303441000,-500.0,0.00014271,2]
[421892795,1778303441000,-160.92381527,0.00014273,2]
[421892789,1778303441000,-501.51866293,0.00014273,2]
[421892790,1778303441000,-352.90946102,0.00014273,2]
[421892792,1778303441000,-319.67106162,0.00014273,2]
[421892793,1778303441000,-500.0,0.00014273,2]
[421892788,1778303441000,-500.0,0.00014273,2]
[421892794,1778303441000,-500.0,0.00014273,2]
[421892796,1778303441000,-501.52783714,0.00014273,2]
[421892797,1778303441000,-500.0,0.00014273,2]
[421892798,1778303441000,-383.12162624,0.00014299,2]
[421892799,1778303441000,-572.13,0.00014299,2]
[421892804,1778303441000,-2351.0,0.00014374,2]
[421892802,1778303441000,-500.0,0.00014328,2]
[421892803,1778303441000,-1582.0,0.0001436,2]
[421892800,1778303441000,-60656.16785985,0.000143,2]
[421892801,1778303441000,-151.0,0.000143,2]
[421892805,1778303441000,-166.66,0.00014384,2]
[421892806,1778303441000,-1671.679,0.00014394,2]
[421892807,1778303441000,-168.917,0.00014394,2]
[421892744,1778303441000,-154.922631,0.0001425,2]
[421892782,1778303441000,-151.0,0.0001425,2]
[421892781,1778303441000,-153.76908211,0.0001425,2]
[421892791,1778303441000,-500.0,0.00014273,2]
[421892771,1778303441000,-151.0,0.0001425,2]
[421892775,1778303441000,-171.798679,0.0001425,2]
[421892746,1778303441000,-151.0,0.0001425,2]
[421892747,1778303441000,-262.69935527,0.0001425,2]
[421892750,1778303441000,-353.004039,0.0001425,2]
[421892752,1778303441000,-353.004039,0.0001425,2]
[421892753,1778303441000,-353.004039,0.0001425,2]
[421892759,1778303441000,-575.808466,0.0001425,2]
[421892760,1778303441000,-575.808466,0.0001425,2]
[421892757,1778303441000,-353.004039,0.0001425,2]
[421892755,1778303441000,-353.004039,0.0001425,2]
[421892751,1778303441000,-353.004039,0.0001425,2]
[421892754,1778303441000,-353.004039,0.0001425,2]
[421892756,1778303441000,-353.004039,0.0001425,2]
[421892758,1778303441000,-575.808466,0.0001425,2]
[421892743,1778303441000,-154.922631,0.0001425,2]
[421892765,1778303441000,-575.808466,0.0001425,2]
[421892767,1778303441000,-151.0,0.0001425,2]
[421892773,1778303441000,-151.0,0.0001425,2]
[421892774,1778303441000,-153.808893,0.0001425,2]
[421892779,1778303441000,-472.524751,0.0001425,2]
[421892763,1778303441000,-575.808466,0.0001425,2]
[421892761,1778303441000,-575.808466,0.0001425,2]
[421892762,1778303441000,-575.808466,0.0001425,2]
[421892772,1778303441000,-151.0,0.0001425,2]
[421892769,1778303441000,-151.0,0.0001425,2]
[421892764,1778303441000,-575.808466,0.0001425,2]
[421892766,1778303441000,-151.0,0.0001425,2]
[421892768,1778303441000,-151.0,0.0001425,2]
[421892770,1778303441000,-151.0,0.0001425,2]
[421892851,1778303442000,-150.99,0.00014504,2]
[421892852,1778303442000,-1626.43,0.00014504,2]
[421892846,1778303442000,-151.0,0.00014504,2]
[421892839,1778303442000,-353.004039,0.00014504,2]
[421892844,1778303442000,-151.0,0.00014504,2]
[421892842,1778303442000,-575.808466,0.00014504,2]
[421892850,1778303442000,-8220.55,0.00014504,2]
[421892849,1778303442000,-3009.71,0.00014504,2]
[421892848,1778303442000,-62927.23,0.00014504,2]
[421892847,1778303442000,-500.0,0.00014504,2]
[421892862,1778303442000,-417.0,0.00014508,2]
[421892845,1778303442000,-151.0,0.00014504,2]
[421892843,1778303442000,-575.808466,0.00014504,2]
[421892863,1778303442000,-3627.0,0.00014508,2]
[421892857,1778303442000,-925.0,0.00014508,2]
[421892853,1778303442000,-6658.19,0.00014504,2]
[421892856,1778303442000,-624.0,0.00014508,2]
[421892859,1778303442000,-1269.0,0.00014508,2]
[421892858,1778303442000,-1352.0,0.00014508,2]
[421892855,1778303442000,-164.616,0.00014508,2]
[421892860,1778303442000,-280.267,0.00014508,2]
[421892861,1778303442000,-1222.0,0.00014508,2]
[421892866,1778303442000,-157.74601024,0.00014559,2]
[421892868,1778303442000,-433.0,0.00014568,2]
[421892867,1778303442000,-160.0,0.00014561,2]
[421892869,1778303442000,-500.0,0.00014573,2]
[421892872,1778303442000,-24953.27065147,0.00014575,2]
[421892875,1778303442000,-472.524751,0.00014575,2]
[421892840,1778303442000,-575.808466,0.00014504,2]
[421892854,1778303442000,-181.16,0.00014504,2]
[421892841,1778303442000,-575.808466,0.00014504,2]
[421892809,1778303442000,-31180.72410093,0.00014412,2]
[421892831,1778303442000,-154.922631,0.00014504,2]
[421892871,1778303442000,-31180.72410093,0.00014575,2]
[421892808,1778303442000,-5530.0,0.000144,5]
[421892810,1778303442000,-24953.27065147,0.00014412,2]
[421892812,1778303442000,-154.922631,0.00014429,2]
[421892813,1778303442000,-154.922631,0.00014429,2]
[421892811,1778303442000,-154.922631,0.00014429,2]
[421892822,1778303442000,-151.0,0.00014452,2]
[421892821,1778303442000,-472.524751,0.00014452,2]
[421892823,1778303442000,-151.0,0.00014452,2]
[421892820,1778303442000,-472.524751,0.00014452,2]
[421892816,1778303442000,-151.0,0.00014429,2]
[421892815,1778303442000,-153.862908,0.00014429,2]
[421892819,1778303442000,-472.524751,0.00014452,2]
[421892817,1778303442000,-151.0,0.00014429,2]
[421892814,1778303442000,-154.922631,0.00014429,2]
[421892818,1778303442000,-472.524751,0.00014452,2]
[421892825,1778303442000,-250.0,0.00014467,2]
[421892837,1778303442000,-353.004039,0.00014504,2]
[421892835,1778303442000,-151.0,0.00014504,2]
[421892824,1778303442000,-204.909,0.00014467,2]
[421892836,1778303442000,-353.004039,0.00014504,2]
[421892826,1778303442000,-150.272,0.00014467,2]
[421892828,1778303442000,-150.234,0.00014503,2]
[421892827,1778303442000,-150.0,0.00014467,2]
[421892832,1778303442000,-154.922631,0.00014504,2]
[421892833,1778303442000,-154.922631,0.00014504,2]
[421892829,1778303442000,-151.0,0.00014503,2]
[421892834,1778303442000,-154.922628,0.00014504,2]
[421892830,1778303442000,-150.215,0.00014503,2]
[421892838,1778303442000,-353.004039,0.00014504,2]
[421892876,1778303442000,-472.52476,0.00014575,2]
[421892864,1778303442000,-424.0,0.00014544,5]
[421892870,1778303442000,-228.29838322,0.00014573,2]
[421892906,1778303442000,-679.73,0.00014858,2]
[421892915,1778303442000,-228.41044444,0.000149,2]
[421892914,1778303442000,-24953.27065147,0.000149,2]
[421892903,1778303442000,-650.83634,0.0001485,2]
[421892910,1778303442000,-502.62790938,0.00014876,2]
[421892907,1778303442000,-788.92,0.00014858,2]
[421892911,1778303442000,-194.48919312,0.000149,2]
[421892909,1778303442000,-200.0,0.00014873,2]
[421892908,1778303442000,-159.63,0.00014872,2]
[421892916,1778303442000,-1115.80188957,0.000149,2]
[421892919,1778303442000,-155.0,0.00014946,2]
[421892918,1778303442000,-5020.80582575,0.00014919,2]
[421892922,1778303442000,-151.0,0.00014946,2]
[421892920,1778303442000,-155.0,0.00014946,2]
[421892917,1778303442000,-21306.90469582,0.000149,2]
[421892921,1778303442000,-151.0,0.00014946,2]
[421892926,1778303442000,-500.0,0.0001497,2]
[421892925,1778303442000,-500.0,0.0001497,2]
[421892924,1778303442000,-194.26250441,0.00014947,2]
[421892928,1778303442000,-500.0,0.0001497,2]
[421892923,1778303442000,-151.0,0.00014946,2]
[421892927,1778303442000,-802.39124716,0.0001497,2]
[421892930,1778303442000,-477.0,0.00014974,2]
[421892929,1778303442000,-500.0,0.0001497,2]
[421892931,1778303442000,-599.0,0.00014986,2]
[421892932,1778303442000,-376.22,0.00014987,2]
[421892934,1778303442000,-155.54682727,0.00014996,2]
[421892937,1778303442000,-1000.0,0.00014999,2]
[421892933,1778303442000,-564.38477353,0.0001499,2]
[421892905,1778303442000,-650.83634,0.0001485,2]
[421892912,1778303442000,-2100.0,0.000149,5]
[421892935,1778303442000,-1000.0,0.00014999,2]
[421892904,1778303442000,-650.83633,0.0001485,2]
[421892913,1778303442000,-31180.72410093,0.000149,2]
[421892874,1778303442000,-472.524751,0.00014575,2]
[421892873,1778303442000,-472.524751,0.00014575,2]
[421892888,1778303442000,-151.0,0.00014738,2]
[421892877,1778303442000,-151.0,0.00014575,2]
[421892878,1778303442000,-152.726029,0.00014575,2]
[421892889,1778303442000,-363.61783292,0.00014738,2]
[421892936,1778303442000,-1000.0,0.00014999,2]
[421892880,1778303442000,-500.0,0.00014602,2]
[421892883,1778303442000,-331.0,0.00014702,2]
[421892884,1778303442000,-1231.592,0.00014726,2]
[421892885,1778303442000,-2319.72410669,0.00014737,2]
[421892887,1778303442000,-24953.27065147,0.00014737,2]
[421892881,1778303442000,-150.0,0.00014647,2]
[421892890,1778303442000,-167.34,0.00014758,2]
[421892865,1778303442000,-419.0,0.00014544,5]
[421892882,1778303442000,-5562.65524931,0.000147,2]
[421892879,1778303442000,-788.92,0.00014585,2]
[421892899,1778303442000,-503.58789827,0.00014821,2]
[421892898,1778303442000,-1000.0,0.00014821,2]
[421892897,1778303442000,-1005.2058529,0.00014821,2]
[421892896,1778303442000,-501.70562275,0.00014821,2]
[421892893,1778303442000,-572.13,0.00014799,2]
[421892900,1778303442000,-506.63075633,0.00014821,2]
[421892891,1778303442000,-546.50816398,0.00014773,2]
[421892892,1778303442000,-1582.0,0.00014774,2]
[421892894,1778303442000,-10900.0,0.000148,5]
[421892886,1778303442000,-31180.72410093,0.00014737,2]
[421892902,1778303442000,-502.38692221,0.00014821,2]
[421892895,1778303442000,-500.0,0.0001482,2]
[421892901,1778303442000,-1000.0,0.00014821,2]
[421892967,1778303443000,-575.808466,0.00014999,2]
[421892983,1778303443000,-572.13,0.00014999,2]
[421892979,1778303443000,-500.0,0.00014999,2]
[421892976,1778303443000,-500.0,0.00014999,2]
[421892973,1778303443000,-500.0,0.00014999,2]
[421892972,1778303443000,-500.0,0.00014999,2]
[421892971,1778303443000,-500.0,0.00014999,2]
[421892970,1778303443000,-500.0,0.00014999,2]
[421892974,1778303443000,-500.0,0.00014999,2]
[421892975,1778303443000,-500.0,0.00014999,2]
[421892977,1778303443000,-500.0,0.00014999,2]
[421892980,1778303443000,-450.51477892,0.00014999,2]
[421892987,1778303443000,-572.13,0.00014999,2]
[421892988,1778303443000,-572.13,0.00014999,2]
[421892986,1778303443000,-572.13,0.00014999,2]
[421892984,1778303443000,-572.13,0.00014999,2]
[421892982,1778303443000,-572.13,0.00014999,2]
[421892985,1778303443000,-572.13,0.00014999,2]
[421892969,1778303443000,-500.0,0.00014999,2]
[421892989,1778303443000,-572.13,0.00014999,2]
[421892990,1778303443000,-572.23359125,0.00014999,2]
[421892991,1778303443000,-439.0,0.00015,5]
[421892992,1778303443000,-171.0,0.00015,2]
[421892993,1778303443000,-184.0,0.00015,2]
[421892996,1778303443000,-275.26,0.00015,2]
[421892997,1778303443000,-298879.21127998,0.00015,2]
[421892994,1778303443000,-192.0,0.00015,2]
[421892981,1778303443000,-572.13,0.00014999,2]
[421892978,1778303443000,-500.0,0.00014999,2]
[421892959,1778303443000,-825.85498927,0.00014999,2]
[421892963,1778303443000,-353.004039,0.00014999,2]
[421892995,1778303443000,-853589.26399282,0.00015,2]
[421892940,1778303443000,-1000.0,0.00014999,2]
[421892939,1778303443000,-1000.0,0.00014999,2]
[421892938,1778303443000,-1000.0,0.00014999,2]
[421892941,1778303443000,-1000.0,0.00014999,2]
[421892942,1778303443000,-1000.0,0.00014999,2]
[421892944,1778303443000,-1000.0,0.00014999,2]
[421892952,1778303443000,-1000.0,0.00014999,2]
[421892953,1778303443000,-1000.0,0.00014999,2]
[421892946,1778303443000,-1000.0,0.00014999,2]
[421892943,1778303443000,-1000.0,0.00014999,2]
[421892945,1778303443000,-1000.0,0.00014999,2]
[421892949,1778303443000,-1000.0,0.00014999,2]
[421892948,1778303443000,-1000.0,0.00014999,2]
[421892950,1778303443000,-1000.0,0.00014999,2]
[421892951,1778303443000,-1000.0,0.00014999,2]
[421892955,1778303443000,-1000.0,0.00014999,2]
[421892966,1778303443000,-575.808466,0.00014999,2]
[421892956,1778303443000,-1000.0,0.00014999,2]
[421892965,1778303443000,-575.808466,0.00014999,2]
[421892957,1778303443000,-1000.0,0.00014999,2]
[421892954,1778303443000,-1000.0,0.00014999,2]
[421892960,1778303443000,-353.004039,0.00014999,2]
[421892962,1778303443000,-353.004039,0.00014999,2]
[421892958,1778303443000,-1000.0,0.00014999,2]
[421892961,1778303443000,-353.004039,0.00014999,2]
[421892964,1778303443000,-575.808466,0.00014999,2]
[421892968,1778303443000,-500.0,0.00014999,2]
[421892947,1778303443000,-1000.0,0.00014999,2]
[421892998,1778303443000,-150.0,0.00015,2]
[421893002,1778303443000,-150.0,0.00015,2]
[421893032,1778303443000,-483.955109,0.00015068,2]
[421893033,1778303443000,-483.955109,0.00015068,2]
[421893034,1778303443000,-483.955109,0.00015068,2]
[421893036,1778303443000,-483.955109,0.00015068,2]
[421893035,1778303443000,-483.955109,0.00015068,2]
[421893039,1778303443000,-483.955109,0.00015068,2]
[421893037,1778303443000,-483.955109,0.00015068,2]
[421893038,1778303443000,-483.955109,0.00015068,2]
[421893041,1778303443000,-483.955109,0.00015068,2]
[421893051,1778303443000,-320.17,0.00015132,2]
[421893042,1778303443000,-483.955109,0.00015068,2]
[421893040,1778303443000,-483.955109,0.00015068,2]
[421893045,1778303443000,-483.955109,0.00015068,2]
[421893049,1778303443000,-157.74601024,0.00015085,2]
[421893043,1778303443000,-483.955109,0.00015068,2]
[421893044,1778303443000,-483.955109,0.00015068,2]
[421893050,1778303443000,-265.81348882,0.00015121,2]
[421893046,1778303443000,-483.955118,0.00015068,2]
[421893047,1778303443000,-150.0,0.00015068,2]